fUST/lending_fUST_20250511
["ID","MTS","AMOUNT","RATE_DAILY","PERIOD"]
[360748515,1746966644262,-168.8,9.692e-05,2]
[360748517,1746966644272,-400.0,9.71e-05,2]
[360748519,1746966644282,-400.0,9.942e-05,2]
[360748522,1746966644295,-400.0,9.984e-05,2]
[360748524,1746966644305,-4538.20362135,0.0001,2]
[360748526,1746966644315,-4538.20362118,0.0001,2]
[360748528,1746966644325,-273.36,0.00010216,2]
[360748530,1746966644334,-4538.20362118,0.00010252,2]
[360748532,1746966644344,-400.0,0.00010258,2]
[360748534,1746966644354,-5777.92905466,0.000103,2]
[360748536,1746966644364,-500.0,0.0001045,2]
[360748538,1746966644375,-500.0,0.0001045,2]
[360748540,1746966644385,-400.0,0.00010532,2]
[360748542,1746966644395,-400.0,0.00010806,2]
[360748544,1746966644407,-502.0212291,0.00010833,2]
[360748546,1746966644417,-500.0,0.00010833,2]
[360748548,1746966644426,-500.0,0.00010893,2]
[360748550,1746966644436,-500.0,0.00010893,2]
[360748552,1746966644445,-500.0,0.00010893,2]
[360748554,1746966644455,-558.69080451,0.00010893,2]
[360748556,1746966644466,-500.0,0.00010893,2]
[360748558,1746966644476,-500.0,0.00010893,2]
[360748561,1746966644486,-500.0,0.00010893,2]
[360748563,1746966644496,-500.0,0.00010893,2]
[360748565,1746966644507,-503.01498266,0.00010893,2]
[360748567,1746966644518,-500.0,0.00010895,2]
[360748569,1746966644529,-500.0,0.00010895,2]
[360748571,1746966644538,-203.18994644,0.00010959,2]
[360748573,1746966644548,-400.0,0.0001108,2]
[360748575,1746966644558,-4538.20362118,0.00011128,2]
[360748577,1746966644568,-400.0,0.00011354,2]
[360748579,1746966644580,-400.0,0.00011628,2]
[360748581,1746966644589,-400.0,0.00011902,2]
[360748583,1746966644599,-4538.20362118,0.00012003,2]
[360748585,1746966644609,-400.0,0.00012176,2]
[360748587,1746966644618,-400.0,0.0001245,2]
[360748589,1746966644628,-2200.0,0.00012524,2]
[360748591,1746966644638,-400.0,0.00012724,2]
[360748593,1746966644647,-4538.20362118,0.00012879,2]
[360748595,1746966644657,-400.0,0.00012998,2]
[360748597,1746966644667,-400.0,0.00013272,2]
[360748599,1746966644676,-216.51958628,0.00013546,2]
[360748601,1746966644686,-1500.0,0.00013699,2]
[360748603,1746966644696,-401.383191,0.00013699,2]
[360748605,1746966644705,-4538.20362118,0.00013755,2]
[360748607,1746966644716,-1000.0,0.00014596,2]
[360748609,1746966644726,-1000.0,0.00014609,2]
[360748611,1746966644735,-1000.0,0.00014609,2]
[360748613,1746966644745,-4538.20362118,0.00014631,2]
[360748615,1746966644754,-1000.0,0.00014662,2]
[360748617,1746966644764,-1000.0,0.00014662,2]
[360748619,1746966644773,-1000.0,0.00014662,2]
[360748621,1746966644784,-167.668,0.00014692,2]
[360748623,1746966644794,-203.38709229,0.0001546,2]
[360748625,1746966644803,-4538.20362118,0.00015507,2]
[360748627,1746966644813,-853.15119644,0.00015929,2]
[360748628,1746966644822,-504.85774466,0.00015929,2]
[360748630,1746966644832,-2300.0,0.00015972,2]
[360748631,1746966644842,-1000.0,0.00016313,2]
[360748632,1746966644851,-1000.0,0.00016373,2]
[360748633,1746966644862,-1000.0,0.00016373,2]
[360748634,1746966644871,-1000.0,0.00016373,2]
[360748635,1746966644881,-1000.0,0.00016373,2]
[360748636,1746966644891,-1000.0,0.00016373,2]
[360748637,1746966644901,-1000.0,0.00016373,2]
[360748638,1746966644911,-1000.0,0.00016373,2]
[360748639,1746966644920,-1000.0,0.00016374,2]
[360748640,1746966644930,-1000.0,0.00016374,2]
[360748641,1746966644940,-4538.20362118,0.00016383,2]
[360748642,1746966644949,-537.0,0.0001692,2]
[360748643,1746966644961,-166.0,0.0001692,2]
[360748644,1746966644970,-537.0,0.0001692,2]
[360748645,1746966644980,-170.0,0.0001692,2]
[360748646,1746966644989,-537.0,0.0001692,2]
[360748647,1746966644999,-300.55021689,0.0001692,2]
[360748648,1746966645009,-537.0,0.0001692,2]
[360748649,1746966645019,-537.0,0.0001692,2]
[360748650,1746966645028,-545.78277355,0.0001692,2]
[360748651,1746966645038,-320.0,0.0001692,2]
[360748652,1746966645048,-328.16092609,0.0001692,2]
[360748653,1746966645058,-4538.20362118,0.00017259,2]
[360748654,1746966645067,-2300.0,0.00017342,2]
[360748655,1746966645077,-4538.20362118,0.00018134,2]
[360748656,1746966645087,-151.930725,0.00018416,2]
[360748657,1746966645097,-652.49990956,0.00018423,2]
[360748658,1746966645107,-2300.0,0.00018438,2]
[360748659,1746966645117,-5000.0,0.000186,2]
[360748660,1746966645127,-1489.5871711,0.00018705,2]
[360748661,1746966645137,-500.0,0.00018773,2]
[360748662,1746966645147,-500.0,0.00018773,2]
[360748664,1746966645156,-500.0,0.00018773,2]
[360748665,1746966645165,-500.0,0.00018773,2]
[360748666,1746966645176,-500.0,0.00018773,2]
[360748667,1746966645186,-533.77378809,0.00018773,2]
[360748668,1746966645196,-500.0,0.00018773,2]
[360748669,1746966645205,-500.0,0.00018773,2]
[360748671,1746966645217,-500.0,0.00018773,2]
[360748672,1746966645227,-500.0,0.00018773,2]
[360748673,1746966645237,-500.0,0.00018773,2]
[360748674,1746966645247,-500.0,0.00018773,2]
[360748675,1746966645256,-500.0,0.00018773,2]
[360748676,1746966645266,-500.0,0.00018773,2]
[360748677,1746966645276,-500.0,0.00018773,2]
[360748678,1746966645286,-500.0,0.00018773,2]
[360748679,1746966645305,-500.0,0.00018773,2]
[360748680,1746966645315,-500.0,0.00018773,2]
[360748681,1746966645324,-500.0,0.00018773,2]
[360748682,1746966645334,-500.0,0.00018773,2]
[360748683,1746966645343,-500.0,0.00018773,2]
[360748684,1746966645352,-500.0,0.00018773,2]
[360748685,1746966645363,-500.0,0.00018773,2]
[360748686,1746966645372,-500.0,0.00018773,2]
[360748688,1746966645381,-500.0,0.00018773,2]
[360748689,1746966645391,-500.0,0.00018773,2]
[360748690,1746966645400,-500.0,0.00018773,2]
[360748691,1746966645410,-500.0,0.00018773,2]
[360748692,1746966645420,-534.57942083,0.00018773,2]
[360748694,1746966645429,-997.71092301,0.000188,3]
[360748695,1746966645440,-212.1539542,0.000188,3]
[360748697,1746966645449,-110342.03789285,0.000188,2]
[360748699,1746966645458,-35019.93814512,0.000188,3]
[360748701,1746966645468,-74927.63990281,0.000188,2]
[360748850,1746966646878,-671.97696574,0.000188,2]
[360748857,1746966646936,-7190.50277893,0.000188,2]
[360749403,1746967609290,155.0,0.00022,60]
[360749774,1746967832153,-384.2942717,9.659e-05,2]
[360749775,1746967832163,-221.36387853,9.659e-05,2]
[360749776,1746967832172,-156.98740169,9.659e-05,2]
[360749777,1746967832182,-300.0,9.665e-05,2]
[360749778,1746967832191,-300.0,9.665e-05,2]
[360749779,1746967832200,-300.0,9.665e-05,2]
[360749780,1746967832213,-300.0,9.665e-05,2]
[360749781,1746967832223,-1200.0,9.665e-05,2]
[360749782,1746967832232,-500.0,9.666e-05,2]
[360749783,1746967832242,-214.62607388,9.666e-05,2]
[360749784,1746967832251,-319.52590542,9.666e-05,2]
[360749785,1746967832261,-400.0,9.667e-05,2]
[360749786,1746967832270,-400.0,9.668e-05,2]
[360749787,1746967832279,-535.30017746,9.775e-05,2]
[360749788,1746967832290,-500.0,9.775e-05,2]
[360749789,1746967832300,-500.0,9.775e-05,2]
[360749790,1746967832309,-500.0,9.775e-05,2]
[360749791,1746967832319,-500.0,9.917e-05,2]
[360749792,1746967832328,-500.0,9.917e-05,2]
[360749793,1746967832337,-500.0,9.918e-05,2]
[360749794,1746967832346,-400.0,9.941e-05,2]
[360749795,1746967832356,-400.0,9.942e-05,2]
[360749796,1746967832366,-500.0,9.963e-05,2]
[360749797,1746967832375,-501.3195648,9.98e-05,2]
[360749798,1746967832385,-500.0,9.98e-05,2]
[360749799,1746967832394,-500.0,9.98e-05,2]
[360749800,1746967832403,-500.0,9.98e-05,2]
[360749801,1746967832413,-508.94882583,9.98e-05,2]
[360749802,1746967832422,-500.0,9.98e-05,2]
[360749803,1746967832431,-500.0,9.98e-05,2]
[360749804,1746967832440,-500.0,9.985e-05,2]
[360749805,1746967832449,-501.66372051,9.985e-05,2]
[360749806,1746967832459,-500.0,9.985e-05,2]
[360749807,1746967832467,-2722.92217294,0.0001,2]
[360749808,1746967832477,-997.71092301,0.00010209,2]
[360749809,1746967832487,-160.0,0.00010209,2]
[360749810,1746967832496,-212.1539542,0.00010209,2]
[360749811,1746967832505,-160.0,0.00010209,2]
[360749812,1746967832515,-160.0,0.00010209,2]
[360749813,1746967832524,-422.1676983,0.00010209,2]
[360749814,1746967832534,-400.0,0.00010215,2]
[360749815,1746967832544,-506.47258563,0.00010216,2]
[360749816,1746967832553,-400.0,0.00010216,2]
[360749817,1746967832562,-348.04064439,0.00010489,2]
[360749818,1746967832571,-400.0,0.0001049,2]
[360749819,1746967832581,-2722.9221727,0.00010534,2]
[360749820,1746967832592,-213.831,0.00010683,2]
[360749821,1746967832601,-400.0,0.00010764,2]
[360749822,1746967832611,-2722.9221727,0.00011369,2]
[360749823,1746967832621,-546.0,0.00012085,2]
[360749824,1746967832631,-245.009,0.00012085,2]
[360749825,1746967832640,-250.0,0.00012085,2]
[360749826,1746967832649,-151.043,0.00012085,2]
[360749827,1746967832659,-2722.9221727,0.00012203,2]
[360749828,1746967832670,-2722.9221727,0.00013038,2]
[360749829,1746967832679,-1500.0,0.00013699,2]
[360749830,1746967832690,-200.691595,0.00013699,2]
[360749831,1746967832699,-2722.9221727,0.00013872,2]
[360749832,1746967832709,-2722.9221727,0.00014707,2]
[360749833,1746967832718,-162.798,0.0001521,2]
[360749834,1746967832727,-1002.20732369,0.00015254,2]
[360749835,1746967832736,-1000.0,0.00015254,2]
[360749836,1746967832746,-1000.0,0.00015254,2]
[360749837,1746967832755,-1059.86629191,0.00015396,2]
[360749838,1746967832764,-1000.0,0.00015396,2]
[360749839,1746967832774,-1000.0,0.00015459,2]
[360749840,1746967832783,-1000.0,0.00015459,2]
[360749841,1746967832792,-1000.0,0.00015459,2]
[360749842,1746967832801,-1000.0,0.00015459,2]
[360749843,1746967832810,-1000.0,0.00015464,2]
[360749844,1746967832819,-2722.9221727,0.00015541,2]
[360749845,1746967832829,-2722.9221727,0.00016376,2]
[360749846,1746967832838,-153.28406873,0.0001692,2]
[360749847,1746967832847,-1400.0,0.00017068,2]
[360749848,1746967832856,-551.28108416,0.0001721,2]
[360749849,1746967832868,-582.19644705,0.0001721,2]
[360749850,1746967832879,-855.4,0.0001721,2]
[360749856,1746967837808,-5014.25238701,9.748e-05,2]
[360749857,1746967837821,-7607.21928964,9.748e-05,2]
[360749858,1746967837831,-404.0,0.00012085,2]
[360749859,1746967837841,-734.04464149,0.0001721,2]
[360749860,1746967837851,-160.83300247,0.00017945,2]
[360749861,1746967837861,-7431.71123988,0.00018,2]
[360749862,1746967837873,-28081.25877922,0.00018,2]
[360749863,1746967837883,-500.0,0.00018038,2]
[360749864,1746967837893,-500.0,0.00018038,2]
[360749865,1746967837902,-342.9003977,0.00018038,2]
[360749866,1746967837912,-500.0,0.00018038,2]
[360749867,1746967837922,-500.0,0.00018038,2]
[360749868,1746967837931,-500.0,0.00018038,2]
[360749869,1746967837941,-500.0,0.00018038,2]
[360749870,1746967837950,-269.86451489,0.00018038,2]
[360749872,1746967837960,-2722.9221727,0.00018045,2]
[360749873,1746967837969,-1400.0,0.00018164,2]
[360749874,1746967837979,-160.0,0.00018273,3]
[360749875,1746967837988,-652.49990956,0.00018491,2]
[360749876,1746967837998,-1000.0,0.000186,2]
[360749878,1746967838007,-1000.0,0.000186,3]
[360749879,1746967838016,-500.0,0.0001863,2]
[360749880,1746967838026,-500.0,0.0001863,2]
[360749881,1746967838036,-500.0,0.0001863,2]
[360749882,1746967838045,-500.0,0.0001863,2]
[360749883,1746967838055,-500.0,0.0001863,2]
[360749884,1746967838064,-500.0,0.0001863,2]
[360749885,1746967838073,-500.0,0.0001863,2]
[360749886,1746967838082,-500.0,0.0001863,2]
[360749887,1746967838092,-500.0,0.0001863,2]
[360749888,1746967838103,-500.0,0.0001863,2]
[360749889,1746967838119,-500.0,0.0001863,2]
[360749890,1746967838131,-500.0,0.0001863,2]
[360749891,1746967838146,-500.0,0.0001863,2]
[360749892,1746967838157,-500.0,0.0001863,2]
[360749893,1746967838166,-500.0,0.0001863,2]
[360749894,1746967838175,-500.0,0.0001863,2]
[360749895,1746967838184,-500.0,0.0001863,2]
[360749896,1746967838195,-358.62539445,0.0001863,2]
[360749897,1746967838205,-500.0,0.0001863,2]
[360749898,1746967838218,-500.0,0.0001863,2]
[360749899,1746967838228,-500.0,0.0001863,2]
[360749900,1746967838237,-500.0,0.0001863,2]
[360749901,1746967838247,-500.0,0.0001863,2]
[360749902,1746967838257,-500.0,0.0001863,2]
[360749903,1746967838266,-160.83300247,0.000187,2]
[360749904,1746967838275,-200.0,0.000187,2]
[360749905,1746967838287,-1266.8925971,0.00018705,2]
[360749906,1746967838296,-500.0,0.00018773,2]
[360749907,1746967838305,-500.0,0.00018773,2]
[360749908,1746967838315,-507.39909851,0.00018773,2]
[360749909,1746967838324,-500.0,0.00018773,2]
[360749910,1746967838334,-500.0,0.00018773,2]
[360749911,1746967838343,-500.0,0.00018773,2]
[360749912,1746967838352,-500.0,0.00018773,2]
[360749913,1746967838361,-12621.47167665,0.000188,3]
[360749914,1746967838371,-997.71092301,0.000188,3]
[360749915,1746967838380,-212.1539542,0.000188,3]
[360749916,1746967838389,-55171.01894643,0.000188,2]
[360749917,1746967838398,-17509.96907256,0.000188,3]
[360749918,1746967838408,-195149.25821459,0.000188,2]
[360749919,1746967838420,-434730.97344715,0.000188,2]
[360749920,1746967838431,-465462.93870467,0.000188,2]
[360749990,1746967844957,-1013.5140776,0.00018705,2]
[360749991,1746967844969,-1503.4859224,0.000188,2]
[360750011,1746967845456,-3092.1,0.000188,2]
[360750013,1746967845513,-966.44442416,0.000188,2]
[360750598,1746970093840,2500.0,0.00022,30]
[360750737,1746970190447,652.49990956,5.08e-06,2]
[360750738,1746970190779,652.49990956,6.83e-06,2]
[360750739,1746970191121,652.49990956,8.25e-06,2]
[360750740,1746970191440,652.49990956,1.323e-05,2]
[360750741,1746970191748,652.49990956,1.564e-05,2]
[360750742,1746970192059,652.49990956,1.816e-05,2]
[360750743,1746970192369,652.49990956,2.177e-05,2]
[360750744,1746970193183,652.49990956,2.278e-05,2]
[360750745,1746970193521,652.49990956,2.592e-05,2]
[360750746,1746970193845,652.49990956,2.966e-05,2]
[360750747,1746970194334,652.49990956,3.021e-05,2]
[360750748,1746970194641,652.49990956,3.468e-05,2]
[360750749,1746970195097,652.49990956,3.828e-05,2]
[360750750,1746970195437,652.49990956,4.102e-05,2]
[360750751,1746970196297,652.49990956,4.259e-05,2]
[360750752,1746970196599,789.63098727,4.576e-05,2]
[360750796,1746970232409,-500.0,8.656e-05,2]
[360750798,1746970232419,-500.0,8.656e-05,2]
[360750800,1746970232428,-225.66189991,8.656e-05,2]
[360750801,1746970232438,-490.32020332,8.656e-05,2]
[360750803,1746970232448,-500.0,8.656e-05,2]
[360750805,1746970232457,-500.0,8.656e-05,2]
[360750807,1746970232467,-500.0,8.656e-05,2]
[360750808,1746970232478,-500.0,8.656e-05,2]
[360750809,1746970232489,-500.0,8.656e-05,2]
[360750810,1746970232498,-500.0,8.656e-05,2]
[360750811,1746970232507,-500.0,8.656e-05,2]
[360750812,1746970232517,-412.88661525,8.656e-05,2]
[360750813,1746970232526,-500.0,8.656e-05,2]
[360750814,1746970232536,-500.0,8.656e-05,2]
[360750815,1746970232545,-293.0474161,8.656e-05,2]
[360750816,1746970232557,-500.0,8.656e-05,2]
[360750817,1746970232567,-612.7836008,8.656e-05,2]
[360750818,1746970232576,-16924.7686902,8.656e-05,2]
[360750830,1746970238234,-7519.68446218,8.656e-05,2]
[360750831,1746970238244,-6434.1851781,8.657e-05,2]
[360750832,1746970238253,-405.13371192,9.652e-05,2]
[360750833,1746970238263,-400.0,9.652e-05,2]
[360750834,1746970238272,-400.0,9.652e-05,2]
[360750835,1746970238281,-400.0,9.652e-05,2]
[360750836,1746970238291,-400.0,9.652e-05,2]
[360750837,1746970238300,-400.0,9.652e-05,2]
[360750839,1746970238312,-400.0,9.655e-05,2]
[360750841,1746970238321,-400.0,9.655e-05,2]
[360750842,1746970238331,-400.0,9.655e-05,2]
[360750843,1746970238340,-400.0,9.655e-05,2]
[360750844,1746970238350,-400.0,9.656e-05,2]
[360750845,1746970238363,-492.09741395,9.656e-05,2]
[360750846,1746970238372,-400.0,9.656e-05,2]
[360750847,1746970238540,-400.0,9.658e-05,2]
[360750848,1746970238551,-400.0,9.658e-05,2]
[360750849,1746970238564,-400.0,9.658e-05,2]
[360750850,1746970238573,-400.0,9.663e-05,2]
[360750851,1746970238584,-404.46423485,9.663e-05,2]
[360750852,1746970238593,-160.0,9.837e-05,2]
[360750853,1746970238603,-400.0,9.926e-05,2]
[360750854,1746970238613,-400.0,9.926e-05,2]
[360750855,1746970238622,-400.0,9.926e-05,2]
[360750856,1746970238632,-400.0,9.929e-05,2]
[360750857,1746970238642,-400.0,9.929e-05,2]
[360750858,1746970238653,-400.0,9.929e-05,2]
[360750859,1746970238664,-400.0,9.93e-05,2]
[360750860,1746970238673,-400.0,9.932e-05,2]
[360750861,1746970238683,-400.0,9.932e-05,2]
[360750862,1746970238692,-152.78145474,9.932e-05,2]
[360750863,1746970238702,-160.0,9.936e-05,2]
[360750864,1746970238711,-422.1676983,9.936e-05,2]
[360750865,1746970238720,-160.0,9.936e-05,2]
[360750866,1746970238729,-12621.47167665,9.936e-05,2]
[360750867,1746970238739,-4497.27809881,0.0001,2]
[360750868,1746970238750,-273.36,0.000102,2]
[360750869,1746970238759,-529.68579224,0.000102,2]
[360750870,1746970238768,-238.72496365,0.000102,2]
[360750871,1746970238778,-400.0,0.00010203,2]
[360750872,1746970238788,-400.0,0.00010203,2]
[360750873,1746970238797,-400.0,0.00010203,2]
[360750874,1746970238810,-400.0,0.00010204,2]
[360750875,1746970238820,-400.0,0.00010206,2]
[360750876,1746970238829,-400.0,0.00010206,2]
[360750877,1746970238839,-4497.27809858,0.00010438,2]
[360750878,1746970238848,-400.0,0.00010477,2]
[360750879,1746970238858,-400.0,0.00010477,2]
[360750880,1746970238868,-400.0,0.00010477,2]
[360750881,1746970238879,-400.0,0.00010478,2]
[360750882,1746970238889,-400.0,0.0001048,2]
[360750883,1746970238899,-400.0,0.0001048,2]
[360750884,1746970238909,-503.89462739,0.00010613,2]
[360750885,1746970238919,-500.0,0.00010621,2]
[360750886,1746970238928,-531.89740536,0.00010639,2]
[360750887,1746970238938,-500.0,0.00010639,2]
[360750888,1746970238948,-900.0,0.000107,2]
[360750889,1746970238958,-500.0,0.00010716,2]
[360750890,1746970238968,-400.0,0.00010751,2]
[360750891,1746970238978,-400.0,0.00010751,2]
[360750892,1746970238987,-400.0,0.00010751,2]
[360750893,1746970238996,-400.0,0.00010752,2]
[360750894,1746970239006,-400.0,0.00010754,2]
[360750895,1746970239020,-400.0,0.00010754,2]
[360750896,1746970239029,-437.80032499,0.00010783,2]
[360750909,1746970240495,-62.19967501,0.00010783,2]
[360750910,1746970240506,-500.0,0.00010783,2]
[360750911,1746970240515,-500.0,0.00010783,2]
[360750912,1746970240524,-500.0,0.00010783,2]
[360750913,1746970240534,-500.0,0.00010783,2]
[360750914,1746970240544,-501.267222,0.00010784,2]
[360750915,1746970240553,-503.27433683,0.00010784,2]
[360750916,1746970240568,-500.0,0.00010784,2]
[360750917,1746970240578,-386.18705168,0.00010784,2]
[360750918,1746970240589,-113.81294832,0.00010784,2]
[360750919,1746970240599,-399.63013437,0.00010784,2]
[360750920,1746970240608,-504.79876016,0.00010817,2]
[360750921,1746970240618,-500.0,0.00010817,2]
[360750922,1746970240627,-500.6461419,0.00010817,2]
[360750923,1746970240636,-500.0,0.00010817,2]
[360750924,1746970240646,-501.16485517,0.00010817,2]
[360750925,1746970240655,-500.0,0.00010817,2]
[360750926,1746970240665,-500.86707672,0.00010817,2]
[360750927,1746970240675,-500.0,0.00010817,2]
[360750928,1746970240684,-477.97051603,0.00010817,2]
[360750929,1746970240693,-500.0,0.00010817,2]
[360750930,1746970240703,-503.08826243,0.00010817,2]
[360750931,1746970240712,-500.0,0.00010817,2]
[360750932,1746970240722,-503.46328977,0.00010817,2]
[360750933,1746970240731,-503.83807161,0.00010817,2]
[360750934,1746970240740,-500.0,0.00010817,2]
[360750935,1746970240750,-409.85274866,0.00010817,2]
[360750936,1746970240759,-503.10778995,0.00010817,2]
[360750937,1746970240769,-500.0,0.00010817,2]
[360750938,1746970240779,-500.0,0.00010831,2]
[360750939,1746970240789,-500.28813762,0.00010831,2]
[360750940,1746970240798,-500.0,0.00010831,2]
[360750941,1746970240811,-500.0,0.00010831,2]
[360750942,1746970240821,-500.0,0.00010831,2]
[360750943,1746970240831,-500.0,0.00010831,2]
[360750944,1746970240841,-500.71979575,0.00010831,2]
[360750945,1746970240850,-500.0,0.00010831,2]
[360750946,1746970240859,-500.0,0.00010831,2]
[360750947,1746970240869,-502.54702265,0.00010831,2]
[360750948,1746970240878,-64.58499602,0.00010831,2]
[360750949,1746970240890,-435.41500398,0.00010831,2]
[360750950,1746970240900,-109.25342721,0.00010925,2]
[360750951,1746970240912,-390.74657279,0.00010925,2]
[360750952,1746970240921,-500.0,0.0001094,2]
[360750953,1746970240931,-500.88924852,0.0001094,2]
[360750954,1746970240941,-111.06903401,0.0001094,2]
[360750955,1746970240953,-388.93096599,0.0001094,2]
[360750956,1746970240963,-229.21476146,0.0001094,2]
[360750998,1746970365111,3731.6140827,0.00022,30]
[360751000,1746970808580,521.70799172,0.00022,120]
[360751125,1746971432716,-5777.0,9.6e-05,2]
[360751127,1746971432726,-345.86484453,9.604e-05,2]
[360751129,1746971432736,-199.22749068,9.604e-05,2]
[360751131,1746971432745,-3436.7966553,9.606e-05,2]
[360751133,1746971432755,-300.0,9.636e-05,2]
[360751135,1746971432764,-625.70410156,9.637e-05,2]
[360751137,1746971432774,-229.69370761,9.637e-05,2]
[360751139,1746971432784,-500.0,9.637e-05,2]
[360751141,1746971432793,-193.22414233,9.637e-05,2]
[360751143,1746971432803,-400.0,9.656e-05,2]
[360751145,1746971432813,-168.8,9.656e-05,2]
[360751147,1746971432822,-400.0,9.656e-05,2]
[360751149,1746971432834,-400.0,9.827e-05,2]
[360751151,1746971432844,-400.0,9.827e-05,2]
[360751153,1746971432853,-160.0,9.854e-05,2]
[360751155,1746971432861,-422.1676983,9.854e-05,2]
[360751157,1746971432871,-160.0,9.854e-05,2]
[360751159,1746971432881,-400.0,9.93e-05,2]
[360751162,1746971432890,-400.0,9.93e-05,2]
[360751163,1746971432900,-4248.06626409,0.0001,2]
[360751164,1746971432909,-410.62657878,0.00010101,2]
[360751165,1746971432920,-400.0,0.00010101,2]
[360751166,1746971432930,-400.0,0.00010204,2]
[360751168,1746971432939,-400.0,0.00010204,2]
[360751170,1746971432949,-400.0,0.00010375,2]
[360751172,1746971432958,-400.0,0.00010478,2]
[360751174,1746971432967,-3448.10473623,0.00010631,2]
[360751177,1746971432979,-799.96152764,0.00010631,2]
[360751179,1746971432989,-400.0,0.00010649,2]
[360751181,1746971432998,-400.0,0.00010752,2]
[360751183,1746971433007,-400.0,0.00010923,2]
[360751185,1746971433017,-203.18994644,0.00010959,2]
[360751187,1746971433026,-400.0,0.00011026,2]
[360751189,1746971433037,-400.0,0.00011196,2]
[360751190,1746971433046,-400.0,0.000113,2]
[360751191,1746971433056,-4248.06626387,0.00011462,2]
[360751192,1746971433066,-400.0,0.0001147,2]
[360751193,1746971433078,-400.0,0.00011574,2]
[360751194,1746971433088,-900.0,0.000117,3]
[360751195,1746971433098,-400.0,0.00011744,2]
[360751196,1746971433108,-400.0,0.00011848,2]
[360751197,1746971433118,-997.71092301,0.00011987,2]
[360751198,1746971433128,-160.0,0.00011987,2]
[360751199,1746971433138,-212.1539542,0.00011987,2]
[360751200,1746971433148,-204.712,0.00012085,2]
[360751201,1746971433157,-244.659,0.00012085,2]
[360751202,1746971433167,-250.0,0.00012085,2]
[360751203,1746971433177,-257.06,0.00012085,2]
[360751204,1746971433186,-400.0,0.00012122,2]
[360751205,1746971433195,-400.0,0.00012165,2]
[360751206,1746971433204,-400.0,0.00012165,2]
[360751207,1746971433214,-835.64759772,0.00012228,2]
[360751208,1746971433223,-266.50656339,0.00012273,2]
[360751209,1746971433233,-500.0,0.00012273,2]
[360751210,1746971433243,-500.0,0.00012273,2]
[360751211,1746971433253,-500.0,0.00012273,2]
[360751212,1746971433263,-500.0,0.00012273,2]
[360751213,1746971433273,-500.0,0.00012273,2]
[360751214,1746971433284,-500.0,0.00012273,2]
[360751215,1746971433293,-500.0,0.00012273,2]
[360751216,1746971433302,-500.0,0.00012273,2]
[360751217,1746971433312,-500.0,0.00012273,2]
[360751218,1746971433322,-503.01498266,0.00012273,2]
[360751219,1746971433337,-500.0,0.00012273,2]
[360751220,1746971433347,-558.69080451,0.00012273,2]
[360751221,1746971433356,-406.66237181,0.00012273,2]
[360751222,1746971433366,-212.1539542,0.00012293,3]
[360751223,1746971433376,-4248.06626387,0.00012293,2]
[360751224,1746971433385,-12500.0,0.00012302,2]
[360751225,1746971433395,-5028.57608944,0.0001231,2]
[360751226,1746971433408,-7471.42391056,0.0001231,2]
[360751227,1746971433418,-12500.0,0.00012319,2]
[360751228,1746971433427,-1932.93553746,0.00012328,2]
[360751229,1746971433436,-12500.0,0.00012328,2]
[360751230,1746971433446,-500.0,0.00012373,2]
[360751231,1746971433456,-500.0,0.00012373,2]
[360751232,1746971433465,-500.0,0.00012373,2]
[360751233,1746971433475,-500.0,0.00012373,2]
[360751234,1746971433484,-500.0,0.00012373,2]
[360751235,1746971433494,-216.51958628,0.00012396,2]
[360751236,1746971433504,-400.0,0.00012439,2]